{"text_format":"1","workbook":"xlsx","n_sheets":3,"sheets":["Equipes","Classement","Résultats"],"not_rendered":{"charts":0,"images":1,"macros":1,"external_links":0,"defined_names":1,"comments":0,"pivot_tables":0},"unopened":[],"bounds":{"document_bytes":16777216,"sheet_cells":100000,"rows_first":2000,"rows_last":500,"rows_between":2000,"halvings":0,"cell_chars":16384,"cell_head_chars":4096},"cells_cut":0,"cells_raw":0,"read":"whole","date_system":"1900"}

{"sheet":"Equipes","index":0,"n_rows":17,"n_cols":10,"rows_kept":17,"cut":false,"hidden":false,"merged":[]}
[]
[]
[]
[]
[null,null,"Equipes inscrites"]
[null,null,null,null,null,null,null,null,null,"Rentrer uniquement le nom des équipes et les scores."]
[]
[]
[]
[null,"A : ","CLARAFOND 2"]
[null,"B :","CLARAFOND 3"]
[null,"C :","SEVRIER 2"]
[null,"D :","LYON 1"]
[null,"E :","LYON 4"]
[null,"F : ","BOURG LES VALENCE 3"]
[null,"G :","VILLEFRANCHE/SAONE"]
[null,"H :","GAILLARD"]

{"sheet":"Classement","index":1,"n_rows":14,"n_cols":16,"rows_kept":14,"cut":false,"hidden":false,"merged":[[10,1,10,2],[9,1,9,2],[0,0,0,16],[1,0,1,3],[1,4,1,13],[2,0,8,0],[2,1,2,2],[2,16,8,16],[3,1,3,2],[6,1,6,2],[5,1,5,2],[4,1,4,2],[8,1,8,2],[7,1,7,2]]}
["                          Resultats et Classement du championnat"]
[null,null,null,null,"SAISON 2019 - 2020"]
[null,"CLASS",null,"EQUIPES","POINTS","DIFF.","MATCHS JOUES","MATCHS GAGNES","BONUS OFF.","MATCHS PERDUS","BONUS DEF.","MATCHS NULS","FORFAITS NON EXCUSES","FORFAITS EXCUSES","PARTIES GAGNEES","PARTIES PERDUES"]
[null,1,null,{"$f":"Equipes!C16","v":"VILLEFRANCHE/SAONE"},{"$f":"H4*5+J4*1+L4*3+I4*1+K4*1","v":28},{"$f":"O4-P4","v":40},{"$f":"H4+J4+L4","v":5},{"$f":"IF(AND(Résultats!E6>8,Résultats!E6<17),1,0)+IF(AND(Résultats!E11>8,Résultats!E11<17),1,0)+IF(AND(Résultats!F16>8,Résultats!F16<17),1,0)+IF(AND(Résultats!E20>8,Résultats!E20<17),1,0)+IF(AND(Résultats!E26>8,Résultats!E26<17),1,0)+IF(AND(Résultats!F29>8,Résultats!F29<17),1,0)+IF(AND(Résultats!F37>8,Résultats!F37<17),1,0)+IF(AND(Résultats!O6>8,Résultats!O6<17),1,0)+IF(AND(Résultats!O11>8,Résultats!O11<17),1,0)+IF(AND(Résultats!N16>8,Résultats!N16<17),1,0)+IF(AND(Résultats!O20>8,Résultats!O20<17),1,0)+IF(AND(Résultats!O26>8,Résultats!O26<17),1,0)+IF(AND(Résultats!N29>8,Résultats!N29<17),1,0)+IF(AND(Résultats!N37>8,Résultats!N37<17),1,0)+IF(Résultats!F6=\"FE\",1,0)+IF(Résultats!F11=\"FE\",1,0)+IF(Résultats!E16=\"FE\",1,0)+IF(Résultats!F20=\"FE\",1,0)+IF(Résultats!F26=\"FE\",1,0)+IF(Résultats!E29=\"FE\",1,0)+IF(Résultats!E37=\"FE\",1,0)+IF(Résultats!N6=\"FE\",1,0)+IF(Résultats!N11=\"FE\",1,0)+IF(Résultats!O16=\"FE\",1,0)+IF(Résultats!N20=\"FE\",1,0)+IF(Résultats!N26=\"FE\",1,0)+IF(Résultats!O29=\"FE\",1,0)+IF(Résultats!O37=\"FE\",1,0)","v":5},{"$f":"IF(AND(Résultats!E6>11,Résultats!E6<17),1,0)+IF(AND(Résultats!E11>11,Résultats!E11<17),1,0)+IF(AND(Résultats!F16>11,Résultats!F16<17),1,0)+IF(AND(Résultats!E20>11,Résultats!E20<17),1,0)+IF(AND(Résultats!E26>11,Résultats!E26<17),1,0)+IF(AND(Résultats!F29>11,Résultats!F29<17),1,0)+IF(AND(Résultats!F37>11,Résultats!F37<17),1,0)+IF(AND(Résultats!O6>11,Résultats!O6<17),1,0)+IF(AND(Résultats!O11>11,Résultats!O11<17),1,0)+IF(AND(Résultats!N16>11,Résultats!N16<17),1,0)+IF(AND(Résultats!O20>11,Résultats!O20<17),1,0)+IF(AND(Résultats!O26>11,Résultats!O26<17),1,0)+IF(AND(Résultats!N29>11,Résultats!N29<17),1,0)+IF(AND(Résultats!N37>11,Résultats!N37<17),1,0)","v":3},{"$f":"IF(ISBLANK(Résultats!E6),\"0\",(IF(Résultats!E6<8,1,0)))+IF(ISBLANK(Résultats!E11),\"0\",(IF(Résultats!E11<8,1,0)))+IF(ISBLANK(Résultats!F16),\"0\",(IF(Résultats!F16<8,1,0)))+IF(ISBLANK(Résultats!E20),\"0\",(IF(Résultats!E20<8,1,0)))+IF(ISBLANK(Résultats!E26),\"0\",(IF(Résultats!E26<8,1,0)))+IF(ISBLANK(Résultats!F29),\"0\",(IF(Résultats!F29<8,1,0)))+IF(ISBLANK(Résultats!F37),\"0\",(IF(Résultats!F37<8,1,0)))+IF(ISBLANK(Résultats!O6),\"0\",(IF(Résultats!O6<8,1,0)))+IF(ISBLANK(Résultats!O11),\"0\",(IF(Résultats!O11<8,1,0)))+IF(ISBLANK(Résultats!N16),\"0\",(IF(Résultats!N16<8,1,0)))+IF(ISBLANK(Résultats!O20),\"0\",(IF(Résultats!O20<8,1,0)))+IF(ISBLANK(Résultats!O26),\"0\",(IF(Résultats!O26<8,1,0)))+IF(ISBLANK(Résultats!N29),\"0\",(IF(Résultats!N29<8,1,0)))+IF(ISBLANK(Résultats!N37),\"0\",(IF(Résultats!N37<8,1,0)))","v":0},{"$f":"IF(AND(Résultats!E6>4,Résultats!E6<8),1,0)+IF(AND(Résultats!E11>4,Résultats!E11<8),1,0)+IF(AND(Résultats!F16>4,Résultats!F16<8),1,0)+IF(AND(Résultats!E20>4,Résultats!E20<8),1,0)+IF(AND(Résultats!E26>4,Résultats!E26<8),1,0)+IF(AND(Résultats!F29>4,Résultats!F29<8),1,0)+IF(AND(Résultats!F37>4,Résultats!F37<8),1,0)+IF(AND(Résultats!O6>4,Résultats!O6<8),1,0)+IF(AND(Résultats!O11>4,Résultats!O11<8),1,0)+IF(AND(Résultats!N16>4,Résultats!N16<8),1,0)+IF(AND(Résultats!O20>4,Résultats!O20<8),1,0)+IF(AND(Résultats!O26>4,Résultats!O26<8),1,0)+IF(AND(Résultats!N29>4,Résultats!N29<8),1,0)+IF(AND(Résultats!N37>4,Résultats!N37<8),1,0)","v":0},{"$f":"IF(Résultats!E6=8,1,0)+IF(Résultats!E11=8,1,0)+IF(Résultats!F16=8,1,0)+IF(Résultats!E20=8,1,0)+IF(Résultats!E26=8,1,0)+IF(Résultats!F29=8,1,0)+IF(Résultats!F37=8,1,0)+IF(Résultats!O6=8,1,0)+IF(Résultats!O11=8,1,0)+IF(Résultats!N16=8,1,0)+IF(Résultats!O20=8,1,0)+IF(Résultats!O26=8,1,0)+IF(Résultats!N29=8,1,0)+IF(Résultats!N37=8,1,0)","v":0},null,{"$f":"IF(Résultats!E6=\"FE\",1,0)+IF(Résultats!E11=\"FE\",1,0)+IF(Résultats!F16=\"FE\",1,0)+IF(Résultats!E20=\"FE\",1,0)+IF(Résultats!E26=\"FE\",1,0)+IF(Résultats!F29=\"FE\",1,0)+IF(Résultats!F37=\"FE\",1,0)+IF(Résultats!O6=\"FE\",1,0)+IF(Résultats!O11=\"FE\",1,0)+IF(Résultats!N16=\"FE\",1,0)+IF(Résultats!O20=\"FE\",1,0)+IF(Résultats!O26=\"FE\",1,0)+IF(Résultats!N29=\"FE\",1,0)+IF(Résultats!N37=\"FE\",1,0)","v":0},{"$f":"IF(Résultats!E6=\"FE\",0,Résultats!E6)+IF(Résultats!E11=\"FE\",0,Résultats!E11)+IF(Résultats!F16=\"FE\",0,Résultats!F16)+IF(Résultats!E20=\"FE\",0,Résultats!E20)+IF(Résultats!E26=\"FE\",0,Résultats!E26)+IF(Résultats!F29=\"FE\",0,Résultats!F29)+IF(Résultats!F37=\"FE\",0,Résultats!F37)+IF(Résultats!O6=\"FE\",0,Résultats!O6)+IF(Résultats!O11=\"FE\",0,Résultats!O11)+IF(Résultats!N16=\"FE\",0,Résultats!N16)+IF(Résultats!O20=\"FE\",0,Résultats!O20)+IF(Résultats!O26=\"FE\",0,Résultats!O26)+IF(Résultats!N29=\"FE\",0,Résultats!N29)+IF(Résultats!N37=\"FE\",0,Résultats!N37)","v":59},{"$f":"IF(Résultats!F6=\"FE\",0,Résultats!F6)+IF(Résultats!F11=\"FE\",0,Résultats!F11)+IF(Résultats!E16=\"FE\",0,Résultats!E16)+IF(Résultats!F20=\"FE\",0,Résultats!F20)+IF(Résultats!F26=\"FE\",0,Résultats!F26)+IF(Résultats!E29=\"FE\",0,Résultats!E29)+IF(Résultats!E37=\"FE\",0,Résultats!E37)+IF(Résultats!N6=\"FE\",0,Résultats!N6)+IF(Résultats!N11=\"FE\",0,Résultats!N11)+IF(Résultats!O16=\"FE\",0,Résultats!O16)+IF(Résultats!N20=\"FE\",0,Résultats!N20)+IF(Résultats!N26=\"FE\",0,Résultats!N26)+IF(Résultats!O29=\"FE\",0,Résultats!O29)+IF(Résultats!O37=\"FE\",0,Résultats!O37)","v":19}]
[null,2,null,{"$f":"Equipes!C15","v":"BOURG LES VALENCE 3"},23,14,5,{"$f":"IF(AND(Résultats!F6>8,Résultats!F6<17),1,0)+IF(AND(Résultats!E12>8,Résultats!E12<17),1,0)+IF(AND(Résultats!F17>8,Résultats!F17<17),1,0)+IF(AND(Résultats!E19>8,Résultats!E19<17),1,0)+IF(AND(Résultats!F27>8,Résultats!F27<17),1,0)+IF(AND(Résultats!F31>8,Résultats!F31<17),1,0)+IF(AND(Résultats!E35>8,Résultats!E35<17),1,0)+IF(AND(Résultats!N6>8,Résultats!N6<17),1,0)+IF(AND(Résultats!O12>8,Résultats!O12<17),1,0)+IF(AND(Résultats!N17>8,Résultats!N17<17),1,0)+IF(AND(Résultats!O19>8,Résultats!O19<17),1,0)+IF(AND(Résultats!N27>8,Résultats!N27<17),1,0)+IF(AND(Résultats!N31>8,Résultats!N31<17),1,0)+IF(AND(Résultats!O35>8,Résultats!O35<17),1,0)+IF(Résultats!E6=\"FE\",1,0)+IF(Résultats!F12=\"FE\",1,0)+IF(Résultats!E17=\"FE\",1,0)+IF(Résultats!F22=\"FE\",1,0)+IF(Résultats!E27=\"FE\",1,0)+IF(Résultats!E31=\"FE\",1,0)+IF(Résultats!F35=\"FE\",1,0)+IF(Résultats!O6=\"FE\",1,0)+IF(Résultats!N12=\"FE\",1,0)+IF(Résultats!O17=\"FE\",1,0)+IF(Résultats!N19=\"FE\",1,0)+IF(Résultats!O27=\"FE\",1,0)+IF(Résultats!O31=\"FE\",1,0)+IF(Résultats!N35=\"FE\",1,0)","v":4},{"$f":"IF(AND(Résultats!F6>11,Résultats!F6<17),1,0)+IF(AND(Résultats!E12>11,Résultats!E12<17),1,0)+IF(AND(Résultats!F17>11,Résultats!F17<17),1,0)+IF(AND(Résultats!E19>11,Résultats!E19<17),1,0)+IF(AND(Résultats!F27>11,Résultats!F27<17),1,0)+IF(AND(Résultats!F31>11,Résultats!F31<17),1,0)+IF(AND(Résultats!E35>11,Résultats!E35<17),1,0)+IF(AND(Résultats!N6>11,Résultats!N6<17),1,0)+IF(AND(Résultats!O12>11,Résultats!O12<17),1,0)+IF(AND(Résultats!N17>11,Résultats!N17<17),1,0)+IF(AND(Résultats!O19>11,Résultats!O19<17),1,0)+IF(AND(Résultats!N27>11,Résultats!N27<17),1,0)+IF(AND(Résultats!N31>11,Résultats!N31<17),1,0)+IF(AND(Résultats!O35>11,Résultats!O35<17),1,0)","v":1},{"$f":"IF(ISBLANK(Résultats!F6),\"0\",(IF(Résultats!F6<8,1,0)))+IF(ISBLANK(Résultats!E12),\"0\",(IF(Résultats!E12<8,1,0)))+IF(ISBLANK(Résultats!F17),\"0\",(IF(Résultats!F17<8,1,0)))+IF(ISBLANK(Résultats!E19),\"0\",(IF(Résultats!E19<8,1,0)))+IF(ISBLANK(Résultats!F27),\"0\",(IF(Résultats!F27<8,1,0)))+IF(ISBLANK(Résultats!F31),\"0\",(IF(Résultats!F31<8,1,0)))+IF(ISBLANK(Résultats!E35),\"0\",(IF(Résultats!E35<8,1,0)))+IF(ISBLANK(Résultats!N6),\"0\",(IF(Résultats!N6<8,1,0)))+IF(ISBLANK(Résultats!O12),\"0\",(IF(Résultats!O12<8,1,0)))+IF(ISBLANK(Résultats!N17),\"0\",(IF(Résultats!N17<8,1,0)))+IF(ISBLANK(Résultats!O19),\"0\",(IF(Résultats!O19<8,1,0)))+IF(ISBLANK(Résultats!N27),\"0\",(IF(Résultats!N27<8,1,0)))+IF(ISBLANK(Résultats!N31),\"0\",(IF(Résultats!N31<8,1,0)))+IF(ISBLANK(Résultats!O35),\"0\",(IF(Résultats!O35<8,1,0)))","v":1},{"$f":"IF(AND(Résultats!F6>4,Résultats!F6<8),1,0)+IF(AND(Résultats!E12>4,Résultats!E12<8),1,0)+IF(AND(Résultats!F17>4,Résultats!F17<8),1,0)+IF(AND(Résultats!E19>4,Résultats!E19<8),1,0)+IF(AND(Résultats!F27>4,Résultats!F27<8),1,0)+IF(AND(Résultats!F31>4,Résultats!F31<8),1,0)+IF(AND(Résultats!E35>4,Résultats!E35<8),1,0)+IF(AND(Résultats!N6>4,Résultats!N6<8),1,0)+IF(AND(Résultats!O12>4,Résultats!O12<8),1,0)+IF(AND(Résultats!N17>4,Résultats!N17<8),1,0)+IF(AND(Résultats!O19>4,Résultats!O19<8),1,0)+IF(AND(Résultats!N27>4,Résultats!N27<8),1,0)+IF(AND(Résultats!N31>4,Résultats!N31<8),1,0)+IF(AND(Résultats!O35>4,Résultats!O35<8),1,0)","v":1},{"$f":"IF(Résultats!F6=8,1,0)+IF(Résultats!E12=8,1,0)+IF(Résultats!F17=8,1,0)+IF(Résultats!E19=8,1,0)+IF(Résultats!F27=8,1,0)+IF(Résultats!F31=8,1,0)+IF(Résultats!E35=8,1,0)+IF(Résultats!N6=8,1,0)+IF(Résultats!O12=8,1,0)+IF(Résultats!N17=8,1,0)+IF(Résultats!O19=8,1,0)+IF(Résultats!N27=8,1,0)+IF(Résultats!N31=8,1,0)+IF(Résultats!O35=8,1,0)","v":0},null,{"$f":"IF(Résultats!F6=\"FE\",1,0)+IF(Résultats!E12=\"FE\",1,0)+IF(Résultats!F17=\"FE\",1,0)+IF(Résultats!E19=\"FE\",1,0)+IF(Résultats!F27=\"FE\",1,0)+IF(Résultats!F31=\"FE\",1,0)+IF(Résultats!E35=\"FE\",1,0)+IF(Résultats!N6=\"FE\",1,0)+IF(Résultats!O12=\"FE\",1,0)+IF(Résultats!N17=\"FE\",1,0)+IF(Résultats!O19=\"FE\",1,0)+IF(Résultats!N27=\"FE\",1,0)+IF(Résultats!N31=\"FE\",1,0)+IF(Résultats!O35=\"FE\",1,0)","v":0},{"$f":"IF(Résultats!F6=\"FE\",0,Résultats!F6)+IF(Résultats!E12=\"FE\",0,Résultats!E12)+IF(Résultats!F17=\"FE\",0,Résultats!F17)+IF(Résultats!E19=\"FE\",0,Résultats!E19)+IF(Résultats!F27=\"FE\",0,Résultats!F27)+IF(Résultats!F31=\"FE\",0,Résultats!F31)+IF(Résultats!E35=\"FE\",0,Résultats!E35)+IF(Résultats!N6=\"FE\",0,Résultats!N6)+IF(Résultats!O12=\"FE\",0,Résultats!O12)+IF(Résultats!N17=\"FE\",0,Résultats!N17)+IF(Résultats!O19=\"FE\",0,Résultats!O19)+IF(Résultats!N27=\"FE\",0,Résultats!N27)+IF(Résultats!N31=\"FE\",0,Résultats!N31)+IF(Résultats!O35=\"FE\",0,Résultats!O35)","v":47},{"$f":"IF(Résultats!E6=\"FE\",0,Résultats!E6)+IF(Résultats!F12=\"FE\",0,Résultats!F12)+IF(Résultats!E17=\"FE\",0,Résultats!E17)+IF(Résultats!F19=\"FE\",0,Résultats!F19)+IF(Résultats!E27=\"FE\",0,Résultats!E27)+IF(Résultats!E31=\"FE\",0,Résultats!E31)+IF(Résultats!F35=\"FE\",0,Résultats!F35)+IF(Résultats!O6=\"FE\",0,Résultats!O6)+IF(Résultats!N12=\"FE\",0,Résultats!N12)+IF(Résultats!O17=\"FE\",0,Résultats!O17)+IF(Résultats!N19=\"FE\",0,Résultats!N19)+IF(Résultats!O27=\"FE\",0,Résultats!O27)+IF(Résultats!O31=\"FE\",0,Résultats!O31)+IF(Résultats!N35=\"FE\",0,Résultats!N35)","v":33}]
[null,3,null,{"$f":"Equipes!C13","v":"LYON 1"},21,2,5,{"$f":"IF(AND(Résultats!E5>8,Résultats!E5<17),1,0)+IF(AND(Résultats!F10>8,Résultats!F10<17),1,0)+IF(AND(Résultats!F14>8,Résultats!F14<17),1,0)+IF(AND(Résultats!E21>8,Résultats!E21<17),1,0)+IF(AND(Résultats!F26>8,Résultats!F26<17),1,0)+IF(AND(Résultats!E31>8,Résultats!E31<17),1,0)+IF(AND(Résultats!E36>8,Résultats!E36<17),1,0)+IF(AND(Résultats!O5>8,Résultats!O5<17),1,0)+IF(AND(Résultats!N10>8,Résultats!N10<17),1,0)+IF(AND(Résultats!N14>8,Résultats!N14<17),1,0)+IF(AND(Résultats!O21>8,Résultats!O21<17),1,0)+IF(AND(Résultats!N26>8,Résultats!N26<17),1,0)+IF(AND(Résultats!O31>8,Résultats!O31<17),1,0)+IF(AND(Résultats!O36>8,Résultats!O36<17),1,0)+IF(Résultats!F5=\"FE\",1,0)+IF(Résultats!E10=\"FE\",1,0)+IF(Résultats!E14=\"FE\",1,0)+IF(Résultats!F21=\"FE\",1,0)+IF(Résultats!E26=\"FE\",1,0)+IF(Résultats!F31=\"FE\",1,0)+IF(Résultats!F36=\"FE\",1,0)+IF(Résultats!N5=\"FE\",1,0)+IF(Résultats!O10=\"FE\",1,0)+IF(Résultats!O14=\"FE\",1,0)+IF(Résultats!N21=\"FE\",1,0)+IF(Résultats!O26=\"FE\",1,0)+IF(Résultats!N31=\"FE\",1,0)+IF(Résultats!N36=\"FE\",1,0)","v":4},{"$f":"IF(AND(Résultats!E5>11,Résultats!E5<17),1,0)+IF(AND(Résultats!F10>11,Résultats!F10<17),1,0)+IF(AND(Résultats!F14>11,Résultats!F14<17),1,0)+IF(AND(Résultats!E21>11,Résultats!E21<17),1,0)+IF(AND(Résultats!F26>11,Résultats!F26<17),1,0)+IF(AND(Résultats!E31>11,Résultats!E31<17),1,0)+IF(AND(Résultats!E36>11,Résultats!E36<17),1,0)+IF(AND(Résultats!O5>11,Résultats!O5<17),1,0)+IF(AND(Résultats!N10>11,Résultats!N10<17),1,0)+IF(AND(Résultats!N14>11,Résultats!N14<17),1,0)+IF(AND(Résultats!O21>11,Résultats!O21<17),1,0)+IF(AND(Résultats!N26>11,Résultats!N26<17),1,0)+IF(AND(Résultats!O31>11,Résultats!O31<17),1,0)+IF(AND(Résultats!O36>11,Résultats!O36<17),1,0)","v":0},{"$f":"IF(ISBLANK(Résultats!E5),\"0\",(IF(Résultats!E5<8,1,0)))+IF(ISBLANK(Résultats!F10),\"0\",(IF(Résultats!F10<8,1,0)))+IF(ISBLANK(Résultats!F14),\"0\",(IF(Résultats!F14<8,1,0)))+IF(ISBLANK(Résultats!E21),\"0\",(IF(Résultats!E21<8,1,0)))+IF(ISBLANK(Résultats!F26),\"0\",(IF(Résultats!F26<8,1,0)))+IF(ISBLANK(Résultats!E31),\"0\",(IF(Résultats!E31<8,1,0)))+IF(ISBLANK(Résultats!E36),\"0\",(IF(Résultats!E36<8,1,0)))+IF(ISBLANK(Résultats!O5),\"0\",(IF(Résultats!O5<8,1,0)))+IF(ISBLANK(Résultats!N10),\"0\",(IF(Résultats!N10<8,1,0)))+IF(ISBLANK(Résultats!N14),\"0\",(IF(Résultats!N14<8,1,0)))+IF(ISBLANK(Résultats!O21),\"0\",(IF(Résultats!O21<8,1,0)))+IF(ISBLANK(Résultats!N26),\"0\",(IF(Résultats!N26<8,1,0)))+IF(ISBLANK(Résultats!O31),\"0\",(IF(Résultats!O31<8,1,0)))+IF(ISBLANK(Résultats!O36),\"0\",(IF(Résultats!O36<8,1,0)))","v":1},{"$f":"IF(AND(Résultats!E5>4,Résultats!E5<8),1,0)+IF(AND(Résultats!F10>4,Résultats!F10<8),1,0)+IF(AND(Résultats!F14>4,Résultats!F14<8),1,0)+IF(AND(Résultats!E21>4,Résultats!E21<8),1,0)+IF(AND(Résultats!F26>4,Résultats!F26<8),1,0)+IF(AND(Résultats!E31>4,Résultats!E31<8),1,0)+IF(AND(Résultats!E36>4,Résultats!E36<8),1,0)+IF(AND(Résultats!O5>4,Résultats!O5<8),1,0)+IF(AND(Résultats!N10>4,Résultats!N10<8),1,0)+IF(AND(Résultats!N14>4,Résultats!N14<8),1,0)+IF(AND(Résultats!O21>4,Résultats!O21<8),1,0)+IF(AND(Résultats!N26>4,Résultats!N26<8),1,0)+IF(AND(Résultats!O31>4,Résultats!O31<8),1,0)+IF(AND(Résultats!O36>4,Résultats!O36<8),1,0)","v":0},{"$f":"IF(Résultats!E5=8,1,0)+IF(Résultats!F10=8,1,0)+IF(Résultats!F14=8,1,0)+IF(Résultats!E21=8,1,0)+IF(Résultats!F26=8,1,0)+IF(Résultats!E31=8,1,0)+IF(Résultats!E36=8,1,0)+IF(Résultats!O5=8,1,0)+IF(Résultats!N10=8,1,0)+IF(Résultats!O14=8,1,0)+IF(Résultats!O21=8,1,0)+IF(Résultats!N26=8,1,0)+IF(Résultats!O31=8,1,0)+IF(Résultats!O36=8,1,0)","v":0},null,{"$f":"IF(Résultats!E5=\"FE\",1,0)+IF(Résultats!F10=\"FE\",1,0)+IF(Résultats!F14=\"FE\",1,0)+IF(Résultats!E21=\"FE\",1,0)+IF(Résultats!F26=\"FE\",1,0)+IF(Résultats!E31=\"FE\",1,0)+IF(Résultats!E36=\"FE\",1,0)+IF(Résultats!O5=\"FE\",1,0)+IF(Résultats!N10=\"FE\",1,0)+IF(Résultats!N14=\"FE\",1,0)+IF(Résultats!O21=\"FE\",1,0)+IF(Résultats!N26=\"FE\",1,0)+IF(Résultats!O31=\"FE\",1,0)+IF(Résultats!O36=\"FE\",1,0)","v":0},{"$f":"IF(Résultats!E5=\"FE\",0,Résultats!E5)+IF(Résultats!F10=\"FE\",0,Résultats!F10)+IF(Résultats!F14=\"FE\",0,Résultats!F14)+IF(Résultats!E21=\"FE\",0,Résultats!E21)+IF(Résultats!F26=\"FE\",0,Résultats!F26)+IF(Résultats!E31=\"FE\",0,Résultats!E31)+IF(Résultats!E36=\"FE\",0,Résultats!E36)+IF(Résultats!O5=\"FE\",0,Résultats!O5)+IF(Résultats!N10=\"FE\",0,Résultats!N10)+IF(Résultats!N14=\"FE\",0,Résultats!N14)+IF(Résultats!O21=\"FE\",0,Résultats!O21)+IF(Résultats!N26=\"FE\",0,Résultats!N26)+IF(Résultats!O31=\"FE\",0,Résultats!O31)+IF(Résultats!O36=\"FE\",0,Résultats!O36)","v":41},{"$f":"IF(Résultats!F5=\"FE\",0,Résultats!F5)+IF(Résultats!E10=\"FE\",0,Résultats!E10)+IF(Résultats!E14=\"FE\",0,Résultats!E14)+IF(Résultats!F21=\"FE\",0,Résultats!F21)+IF(Résultats!E26=\"FE\",0,Résultats!E26)+IF(Résultats!F31=\"FE\",0,Résultats!F31)+IF(Résultats!F36=\"FE\",0,Résultats!F36)+IF(Résultats!N5=\"FE\",0,Résultats!N5)+IF(Résultats!O10=\"FE\",0,Résultats!O10)+IF(Résultats!O14=\"FE\",0,Résultats!O14)+IF(Résultats!N21=\"FE\",0,Résultats!N21)+IF(Résultats!O26=\"FE\",0,Résultats!O26)+IF(Résultats!N31=\"FE\",0,Résultats!N31)+IF(Résultats!N36=\"FE\",0,Résultats!N36)","v":39}]
[null,4,null,{"$f":"Equipes!C12","v":"SEVRIER 2"},17,6,5,{"$f":"IF(AND(Résultats!E7>8,Résultats!E7<17),1,0)+IF(AND(Résultats!F11>8,Résultats!F11<17),1,0)+IF(AND(Résultats!E17>8,Résultats!E17<17),1,0)+IF(AND(Résultats!F22>8,Résultats!F22<17),1,0)+IF(AND(Résultats!F24>8,Résultats!F24<17),1,0)+IF(AND(Résultats!E30>8,Résultats!E30<17),1,0)+IF(AND(Résultats!F36>8,Résultats!F36<17),1,0)+IF(AND(Résultats!O7>8,Résultats!O7<17),1,0)+IF(AND(Résultats!N11>8,Résultats!N11<17),1,0)+IF(AND(Résultats!O17>8,Résultats!O17<17),1,0)+IF(AND(Résultats!N22>8,Résultats!N22<17),1,0)+IF(AND(Résultats!N24>8,Résultats!N24<17),1,0)+IF(AND(Résultats!O30>8,Résultats!O30<17),1,0)+IF(AND(Résultats!N36>8,Résultats!N36<17),1,0)+IF(Résultats!F7=\"FE\",1,0)+IF(Résultats!E11=\"FE\",1,0)+IF(Résultats!F17=\"FE\",1,0)+IF(Résultats!E22=\"FE\",1,0)+IF(Résultats!E24=\"FE\",1,0)+IF(Résultats!F30=\"FE\",1,0)+IF(Résultats!E36=\"FE\",1,0)+IF(Résultats!N7=\"FE\",1,0)+IF(Résultats!O11=\"FE\",1,0)+IF(Résultats!N17=\"FE\",1,0)+IF(Résultats!O22=\"FE\",1,0)+IF(Résultats!O24=\"FE\",1,0)+IF(Résultats!N30=\"FE\",1,0)+IF(Résultats!O36=\"FE\",1,0)","v":2},{"$f":"IF(AND(Résultats!E7>11,Résultats!E7<17),1,0)+IF(AND(Résultats!F11>11,Résultats!F11<17),1,0)+IF(AND(Résultats!E17>11,Résultats!E17<17),1,0)+IF(AND(Résultats!F22>11,Résultats!F22<17),1,0)+IF(AND(Résultats!F24>11,Résultats!F24<17),1,0)+IF(AND(Résultats!E30>11,Résultats!E30<17),1,0)+IF(AND(Résultats!F36>11,Résultats!F36<17),1,0)+IF(AND(Résultats!O7>11,Résultats!O7<17),1,0)+IF(AND(Résultats!N11>11,Résultats!N11<17),1,0)+IF(AND(Résultats!O17>11,Résultats!O17<17),1,0)+IF(AND(Résultats!N22>11,Résultats!N22<17),1,0)+IF(AND(Résultats!N24>11,Résultats!N24<17),1,0)+IF(AND(Résultats!O30>11,Résultats!O30<17),1,0)+IF(AND(Résultats!N36>11,Résultats!N36<17),1,0)","v":1},{"$f":"IF(ISBLANK(Résultats!E7),\"0\",(IF(Résultats!E7<8,1,0)))+IF(ISBLANK(Résultats!F11),\"0\",(IF(Résultats!F11<8,1,0)))+IF(ISBLANK(Résultats!E17),\"0\",(IF(Résultats!E17<8,1,0)))+IF(ISBLANK(Résultats!F22),\"0\",(IF(Résultats!F22<8,1,0)))+IF(ISBLANK(Résultats!F24),\"0\",(IF(Résultats!F24<8,1,0)))+IF(ISBLANK(Résultats!E30),\"0\",(IF(Résultats!E30<8,1,0)))+IF(ISBLANK(Résultats!F36),\"0\",(IF(Résultats!F36<8,1,0)))+IF(ISBLANK(Résultats!O7),\"0\",(IF(Résultats!O7<8,1,0)))+IF(ISBLANK(Résultats!N11),\"0\",(IF(Résultats!N11<8,1,0)))+IF(ISBLANK(Résultats!O17),\"0\",(IF(Résultats!O17<8,1,0)))+IF(ISBLANK(Résultats!N22),\"0\",(IF(Résultats!N22<8,1,0)))+IF(ISBLANK(Résultats!N24),\"0\",(IF(Résultats!N24<8,1,0)))+IF(ISBLANK(Résultats!O30),\"0\",(IF(Résultats!O30<8,1,0)))+IF(ISBLANK(Résultats!N36),\"0\",(IF(Résultats!N36<8,1,0)))","v":3},{"$f":"IF(AND(Résultats!E7>4,Résultats!E7<8),1,0)+IF(AND(Résultats!F11>4,Résultats!F11<8),1,0)+IF(AND(Résultats!E17>4,Résultats!E17<8),1,0)+IF(AND(Résultats!F22>4,Résultats!F22<8),1,0)+IF(AND(Résultats!F24>4,Résultats!F24<8),1,0)+IF(AND(Résultats!E30>4,Résultats!E30<8),1,0)+IF(AND(Résultats!F36>4,Résultats!F36<8),1,0)+IF(AND(Résultats!O7>4,Résultats!O7<8),1,0)+IF(AND(Résultats!N11>4,Résultats!N11<8),1,0)+IF(AND(Résultats!O17>4,Résultats!O17<8),1,0)+IF(AND(Résultats!N22>4,Résultats!N22<8),1,0)+IF(AND(Résultats!N24>4,Résultats!N24<8),1,0)+IF(AND(Résultats!O30>4,Résultats!O30<8),1,0)+IF(AND(Résultats!N36>4,Résultats!N36<8),1,0)","v":3},{"$f":"IF(Résultats!E7=8,1,0)+IF(Résultats!F11=8,1,0)+IF(Résultats!E17=8,1,0)+IF(Résultats!F22=8,1,0)+IF(Résultats!F24=8,1,0)+IF(Résultats!E30=8,1,0)+IF(Résultats!F36=8,1,0)+IF(Résultats!O7=8,1,0)+IF(Résultats!N11=8,1,0)+IF(Résultats!O17=8,1,0)+IF(Résultats!N22=8,1,0)+IF(Résultats!N24=8,1,0)+IF(Résultats!O30=8,1,0)+IF(Résultats!N36=8,1,0)","v":0},null,{"$f":"IF(Résultats!E7=\"FE\",1,0)+IF(Résultats!F11=\"FE\",1,0)+IF(Résultats!E17=\"FE\",1,0)+IF(Résultats!F22=\"FE\",1,0)+IF(Résultats!F24=\"FE\",1,0)+IF(Résultats!E30=\"FE\",1,0)+IF(Résultats!F36=\"FE\",1,0)+IF(Résultats!O7=\"FE\",1,0)+IF(Résultats!N11=\"FE\",1,0)+IF(Résultats!O17=\"FE\",1,0)+IF(Résultats!N22=\"FE\",1,0)+IF(Résultats!N24=\"FE\",1,0)+IF(Résultats!O30=\"FE\",1,0)+IF(Résultats!N36=\"FE\",1,0)","v":0},{"$f":"IF(Résultats!E7=\"FE\",0,Résultats!E7)+IF(Résultats!F11=\"FE\",0,Résultats!F11)+IF(Résultats!E17=\"FE\",0,Résultats!E17)+IF(Résultats!F22=\"FE\",0,Résultats!F22)+IF(Résultats!F24=\"FE\",0,Résultats!F24)+IF(Résultats!E30=\"FE\",0,Résultats!E30)+IF(Résultats!F36=\"FE\",0,Résultats!F36)+IF(Résultats!O7=\"FE\",0,Résultats!O7)+IF(Résultats!N11=\"FE\",0,Résultats!N11)+IF(Résultats!O17=\"FE\",0,Résultats!O17)+IF(Résultats!N22=\"FE\",0,Résultats!N22)+IF(Résultats!N24=\"FE\",0,Résultats!N24)+IF(Résultats!O30=\"FE\",0,Résultats!O30)+IF(Résultats!N36=\"FE\",0,Résultats!N36)","v":43},{"$f":"IF(Résultats!F7=\"FE\",0,Résultats!F7)+IF(Résultats!E11=\"FE\",0,Résultats!E11)+IF(Résultats!F17=\"FE\",0,Résultats!F17)+IF(Résultats!E22=\"FE\",0,Résultats!E22)+IF(Résultats!E24=\"FE\",0,Résultats!E24)+IF(Résultats!F30=\"FE\",0,Résultats!F30)+IF(Résultats!E36=\"FE\",0,Résultats!E36)+IF(Résultats!N7=\"FE\",0,Résultats!N7)+IF(Résultats!O11=\"FE\",0,Résultats!O11)+IF(Résultats!N17=\"FE\",0,Résultats!N17)+IF(Résultats!O22=\"FE\",0,Résultats!O22)+IF(Résultats!O24=\"FE\",0,Résultats!O24)+IF(Résultats!N30=\"FE\",0,Résultats!N30)+IF(Résultats!O36=\"FE\",0,Résultats!O36)","v":37}]
[null,5,null,{"$f":"Equipes!C17","v":"GAILLARD"},16,2,5,{"$f":"IF(AND(Résultats!F7>8,Résultats!F7<17),1,0)+IF(AND(Résultats!F12>8,Résultats!F12<17),1,0)+IF(AND(Résultats!E16>8,Résultats!E16<17),1,0)+IF(AND(Résultats!F21>8,Résultats!F21<17),1,0)+IF(AND(Résultats!F25>8,Résultats!F25<17),1,0)+IF(AND(Résultats!E32>8,Résultats!E32<17),1,0)+IF(AND(Résultats!E34>8,Résultats!E34<17),1,0)+IF(AND(Résultats!N7>8,Résultats!N7<17),1,0)+IF(AND(Résultats!N12>8,Résultats!N12<17),1,0)+IF(AND(Résultats!O16>8,Résultats!O16<17),1,0)+IF(AND(Résultats!N21>8,Résultats!N21<17),1,0)+IF(AND(Résultats!N25>8,Résultats!N25<17),1,0)+IF(AND(Résultats!O32>8,Résultats!O32<17),1,0)+IF(AND(Résultats!O34>8,Résultats!O34<17),1,0)+IF(Résultats!E7=\"FE\",1,0)+IF(Résultats!E12=\"FE\",1,0)+IF(Résultats!F16=\"FE\",1,0)+IF(Résultats!E21=\"FE\",1,0)+IF(Résultats!E25=\"FE\",1,0)+IF(Résultats!F32=\"FE\",1,0)+IF(Résultats!F34=\"FE\",1,0)+IF(Résultats!O7=\"FE\",1,0)+IF(Résultats!O12=\"FE\",1,0)+IF(Résultats!N16=\"FE\",1,0)+IF(Résultats!O21=\"FE\",1,0)+IF(Résultats!O25=\"FE\",1,0)+IF(Résultats!N32=\"FE\",1,0)+IF(Résultats!N34=\"FE\",1,0)","v":2},{"$f":"IF(AND(Résultats!F7>11,Résultats!F7<17),1,0)+IF(AND(Résultats!F12>11,Résultats!F12<17),1,0)+IF(AND(Résultats!E16>11,Résultats!E16<17),1,0)+IF(AND(Résultats!F21>11,Résultats!F21<17),1,0)+IF(AND(Résultats!F25>11,Résultats!F25<17),1,0)+IF(AND(Résultats!E32>11,Résultats!E32<17),1,0)+IF(AND(Résultats!E34>11,Résultats!E34<17),1,0)+IF(AND(Résultats!N7>11,Résultats!N7<17),1,0)+IF(AND(Résultats!N12>11,Résultats!N12<17),1,0)+IF(AND(Résultats!O16>11,Résultats!O16<17),1,0)+IF(AND(Résultats!N21>11,Résultats!N21<17),1,0)+IF(AND(Résultats!N25>11,Résultats!N25<17),1,0)+IF(AND(Résultats!O32>11,Résultats!O32<17),1,0)+IF(AND(Résultats!O34>11,Résultats!O34<17),1,0)","v":1},{"$f":"IF(ISBLANK(Résultats!F7),\"0\",(IF(Résultats!F7<8,1,0)))+IF(ISBLANK(Résultats!F12),\"0\",(IF(Résultats!F12<8,1,0)))+IF(ISBLANK(Résultats!E16),\"0\",(IF(Résultats!E16<8,1,0)))+IF(ISBLANK(Résultats!F21),\"0\",(IF(Résultats!F21<8,1,0)))+IF(ISBLANK(Résultats!F25),\"0\",(IF(Résultats!F25<8,1,0)))+IF(ISBLANK(Résultats!E32),\"0\",(IF(Résultats!E32<8,1,0)))+IF(ISBLANK(Résultats!E34),\"0\",(IF(Résultats!E34<8,1,0)))+IF(ISBLANK(Résultats!N7),\"0\",(IF(Résultats!N7<8,1,0)))+IF(ISBLANK(Résultats!N12),\"0\",(IF(Résultats!N12<8,1,0)))+IF(ISBLANK(Résultats!O16),\"0\",(IF(Résultats!O16<8,1,0)))+IF(ISBLANK(Résultats!N21),\"0\",(IF(Résultats!N21<8,1,0)))+IF(ISBLANK(Résultats!N25),\"0\",(IF(Résultats!N25<8,1,0)))+IF(ISBLANK(Résultats!O32),\"0\",(IF(Résultats!O32<8,1,0)))+IF(ISBLANK(Résultats!O34),\"0\",(IF(Résultats!O34<8,1,0)))","v":3},{"$f":"IF(AND(Résultats!F7>4,Résultats!F7<8),1,0)+IF(AND(Résultats!F12>4,Résultats!F12<8),1,0)+IF(AND(Résultats!E16>4,Résultats!E16<8),1,0)+IF(AND(Résultats!F21>4,Résultats!F21<8),1,0)+IF(AND(Résultats!F25>4,Résultats!F25<8),1,0)+IF(AND(Résultats!E32>4,Résultats!E32<8),1,0)+IF(AND(Résultats!E34>4,Résultats!E34<8),1,0)+IF(AND(Résultats!N7>4,Résultats!N7<8),1,0)+IF(AND(Résultats!N12>4,Résultats!N12<8),1,0)+IF(AND(Résultats!O16>4,Résultats!O16<8),1,0)+IF(AND(Résultats!N21>4,Résultats!N21<8),1,0)+IF(AND(Résultats!N25>4,Résultats!N25<8),1,0)+IF(AND(Résultats!O32>4,Résultats!O32<8),1,0)+IF(AND(Résultats!O34>4,Résultats!O34<8),1,0)","v":2},{"$f":"IF(Résultats!F7=8,1,0)+IF(Résultats!F12=8,1,0)+IF(Résultats!E16=8,1,0)+IF(Résultats!F21=8,1,0)+IF(Résultats!F25=8,1,0)+IF(Résultats!E32=8,1,0)+IF(Résultats!E34=8,1,0)+IF(Résultats!N7=8,1,0)+IF(Résultats!N12=8,1,0)+IF(Résultats!O16=8,1,0)+IF(Résultats!N21=8,1,0)+IF(Résultats!N25=8,1,0)+IF(Résultats!O32=8,1,0)+IF(Résultats!O34=8,1,0)","v":0},null,{"$f":"IF(Résultats!F7=\"FE\",1,0)+IF(Résultats!F12=\"FE\",1,0)+IF(Résultats!E16=\"FE\",1,0)+IF(Résultats!F21=\"FE\",1,0)+IF(Résultats!F25=\"FE\",1,0)+IF(Résultats!E32=\"FE\",1,0)+IF(Résultats!E34=\"FE\",1,0)+IF(Résultats!N7=\"FE\",1,0)+IF(Résultats!N12=\"FE\",1,0)+IF(Résultats!O16=\"FE\",1,0)+IF(Résultats!N21=\"FE\",1,0)+IF(Résultats!N25=\"FE\",1,0)+IF(Résultats!O32=\"FE\",1,0)+IF(Résultats!O34=\"FE\",1,0)","v":0},{"$f":"IF(Résultats!F7=\"FE\",0,Résultats!F7)+IF(Résultats!F12=\"FE\",0,Résultats!F12)+IF(Résultats!E16=\"FE\",0,Résultats!E16)+IF(Résultats!F21=\"FE\",0,Résultats!F21)+IF(Résultats!F25=\"FE\",0,Résultats!F25)+IF(Résultats!E32=\"FE\",0,Résultats!E32)+IF(Résultats!E34=\"FE\",0,Résultats!E34)+IF(Résultats!N7=\"FE\",0,Résultats!N7)+IF(Résultats!N12=\"FE\",0,Résultats!N12)+IF(Résultats!O16=\"FE\",0,Résultats!O16)+IF(Résultats!N21=\"FE\",0,Résultats!N21)+IF(Résultats!N25=\"FE\",0,Résultats!N25)+IF(Résultats!O32=\"FE\",0,Résultats!O32)+IF(Résultats!O34=\"FE\",0,Résultats!O34)","v":41},{"$f":"IF(Résultats!E7=\"FE\",0,Résultats!E7)+IF(Résultats!E12=\"FE\",0,Résultats!E12)+IF(Résultats!F16=\"FE\",0,Résultats!F16)+IF(Résultats!E21=\"FE\",0,Résultats!E21)+IF(Résultats!E25=\"FE\",0,Résultats!E25)+IF(Résultats!F32=\"FE\",0,Résultats!F32)+IF(Résultats!F34=\"FE\",0,Résultats!F34)+IF(Résultats!O7=\"FE\",0,Résultats!O7)+IF(Résultats!O12=\"FE\",0,Résultats!O12)+IF(Résultats!N16=\"FE\",0,Résultats!N16)+IF(Résultats!O21=\"FE\",0,Résultats!O21)+IF(Résultats!O25=\"FE\",0,Résultats!O25)+IF(Résultats!N32=\"FE\",0,Résultats!N32)+IF(Résultats!N34=\"FE\",0,Résultats!N34)","v":39}]
[null,6,null,{"$f":"Equipes!C14","v":"LYON 4"},14,-10,5,{"$f":"IF(AND(Résultats!F5>8,Résultats!F5<17),1,0)+IF(AND(Résultats!E9>8,Résultats!E9<17),1,0)+IF(AND(Résultats!F15>8,Résultats!F15<17),1,0)+IF(AND(Résultats!E22>8,Résultats!E22<17),1,0)+IF(AND(Résultats!E27>8,Résultats!E27<17),1,0)+IF(AND(Résultats!F32>8,Résultats!F32<17),1,0)+IF(AND(Résultats!E37>8,Résultats!E37<17),1,0)+IF(AND(Résultats!N5>8,Résultats!N5<17),1,0)+IF(AND(Résultats!O9>8,Résultats!O9<17),1,0)+IF(AND(Résultats!N15>8,Résultats!N15<17),1,0)+IF(AND(Résultats!O22>8,Résultats!O22<17),1,0)+IF(AND(Résultats!O27>8,Résultats!O27<17),1,0)+IF(AND(Résultats!N32>8,Résultats!N32<17),1,0)+IF(AND(Résultats!O37>8,Résultats!O37<17),1,0)+IF(Résultats!E5=\"FE\",1,0)+IF(Résultats!F9=\"FE\",1,0)+IF(Résultats!E15=\"FE\",1,0)+IF(Résultats!F22=\"FE\",1,0)+IF(Résultats!F27=\"FE\",1,0)+IF(Résultats!E32=\"FE\",1,0)+IF(Résultats!F37=\"FE\",1,0)+IF(Résultats!O5=\"FE\",1,0)+IF(Résultats!N9=\"FE\",1,0)+IF(Résultats!O15=\"FE\",1,0)+IF(Résultats!N22=\"FE\",1,0)+IF(Résultats!N27=\"FE\",1,0)+IF(Résultats!O32=\"FE\",1,0)+IF(Résultats!N37=\"FE\",1,0)","v":1},{"$f":"IF(AND(Résultats!F5>11,Résultats!F5<17),1,0)+IF(AND(Résultats!E9>11,Résultats!E9<17),1,0)+IF(AND(Résultats!F15>11,Résultats!F15<17),1,0)+IF(AND(Résultats!E22>11,Résultats!E22<17),1,0)+IF(AND(Résultats!E27>11,Résultats!E27<17),1,0)+IF(AND(Résultats!F32>11,Résultats!F32<17),1,0)+IF(AND(Résultats!E37>11,Résultats!E37<17),1,0)+IF(AND(Résultats!N5>11,Résultats!N5<17),1,0)+IF(AND(Résultats!O9>11,Résultats!O9<17),1,0)+IF(AND(Résultats!N15>11,Résultats!N15<17),1,0)+IF(AND(Résultats!O22>11,Résultats!O22<17),1,0)+IF(AND(Résultats!O27>11,Résultats!O27<17),1,0)+IF(AND(Résultats!N32>11,Résultats!N32<17),1,0)+IF(AND(Résultats!O37>11,Résultats!O37<17),1,0)","v":1},{"$f":"IF(ISBLANK(Résultats!F5),\"0\",(IF(Résultats!F5<8,1,0)))+IF(ISBLANK(Résultats!E9),\"0\",(IF(Résultats!E9<8,1,0)))+IF(ISBLANK(Résultats!F15),\"0\",(IF(Résultats!F15<8,1,0)))+IF(ISBLANK(Résultats!E22),\"0\",(IF(Résultats!E22<8,1,0)))+IF(ISBLANK(Résultats!E27),\"0\",(IF(Résultats!E27<8,1,0)))+IF(ISBLANK(Résultats!F32),\"0\",(IF(Résultats!F32<8,1,0)))+IF(ISBLANK(Résultats!E37),\"0\",(IF(Résultats!E37<8,1,0)))+IF(ISBLANK(Résultats!N5),\"0\",(IF(Résultats!N5<8,1,0)))+IF(ISBLANK(Résultats!O9),\"0\",(IF(Résultats!O9<8,1,0)))+IF(ISBLANK(Résultats!N15),\"0\",(IF(Résultats!N15<8,1,0)))+IF(ISBLANK(Résultats!O22),\"0\",(IF(Résultats!O22<8,1,0)))+IF(ISBLANK(Résultats!O27),\"0\",(IF(Résultats!O27<8,1,0)))+IF(ISBLANK(Résultats!N32),\"0\",(IF(Résultats!N32<8,1,0)))+IF(ISBLANK(Résultats!O37),\"0\",(IF(Résultats!O37<8,1,0)))","v":4},{"$f":"IF(AND(Résultats!F5>4,Résultats!F5<8),1,0)+IF(AND(Résultats!E9>4,Résultats!E9<8),1,0)+IF(AND(Résultats!F15>4,Résultats!F15<8),1,0)+IF(AND(Résultats!E22>4,Résultats!E22<8),1,0)+IF(AND(Résultats!E27>4,Résultats!E27<8),1,0)+IF(AND(Résultats!F32>4,Résultats!F32<8),1,0)+IF(AND(Résultats!E37>4,Résultats!E37<8),1,0)+IF(AND(Résultats!N5>4,Résultats!N5<8),1,0)+IF(AND(Résultats!O9>4,Résultats!O9<8),1,0)+IF(AND(Résultats!N15>4,Résultats!N15<8),1,0)+IF(AND(Résultats!O22>4,Résultats!O22<8),1,0)+IF(AND(Résultats!O27>4,Résultats!O27<8),1,0)+IF(AND(Résultats!N32>4,Résultats!N32<8),1,0)+IF(AND(Résultats!O37>4,Résultats!O37<8),1,0)","v":4},{"$f":"IF(Résultats!F5=8,1,0)+IF(Résultats!E9=8,1,0)+IF(Résultats!F15=8,1,0)+IF(Résultats!E22=8,1,0)+IF(Résultats!E27=8,1,0)+IF(Résultats!F32=8,1,0)+IF(Résultats!E37=8,1,0)+IF(Résultats!N5=8,1,0)+IF(Résultats!O9=8,1,0)+IF(Résultats!N15=8,1,0)+IF(Résultats!O22=8,1,0)+IF(Résultats!O27=8,1,0)+IF(Résultats!N32=8,1,0)+IF(Résultats!O37=8,1,0)","v":0},null,{"$f":"IF(Résultats!F5=\"FE\",1,0)+IF(Résultats!E9=\"FE\",1,0)+IF(Résultats!F15=\"FE\",1,0)+IF(Résultats!E22=\"FE\",1,0)+IF(Résultats!E27=\"FE\",1,0)+IF(Résultats!F32=\"FE\",1,0)+IF(Résultats!E37=\"FE\",1,0)+IF(Résultats!N5=\"FE\",1,0)+IF(Résultats!O9=\"FE\",1,0)+IF(Résultats!N15=\"FE\",1,0)+IF(Résultats!O22=\"FE\",1,0)+IF(Résultats!O27=\"FE\",1,0)+IF(Résultats!N32=\"FE\",1,0)+IF(Résultats!O37=\"FE\",1,0)","v":0},{"$f":"IF(Résultats!F5=\"FE\",0,Résultats!F5)+IF(Résultats!E9=\"FE\",0,Résultats!E9)+IF(Résultats!F15=\"FE\",0,Résultats!F15)+IF(Résultats!E22=\"FE\",0,Résultats!E22)+IF(Résultats!E27=\"FE\",0,Résultats!E27)+IF(Résultats!F32=\"FE\",0,Résultats!F32)+IF(Résultats!E37=\"FE\",0,Résultats!E37)+IF(Résultats!N5=\"FE\",0,Résultats!N5)+IF(Résultats!O9=\"FE\",0,Résultats!O9)+IF(Résultats!N15=\"FE\",0,Résultats!N15)+IF(Résultats!O22=\"FE\",0,Résultats!O22)+IF(Résultats!O27=\"FE\",0,Résultats!O27)+IF(Résultats!N32=\"FE\",0,Résultats!N32)+IF(Résultats!O37=\"FE\",0,Résultats!O37)","v":35},{"$f":"IF(Résultats!E5=\"FE\",0,Résultats!E5)+IF(Résultats!F9=\"FE\",0,Résultats!F9)+IF(Résultats!E15=\"FE\",0,Résultats!E15)+IF(Résultats!F22=\"FE\",0,Résultats!F22)+IF(Résultats!F27=\"FE\",0,Résultats!F27)+IF(Résultats!E32=\"FE\",0,Résultats!E32)+IF(Résultats!F37=\"FE\",0,Résultats!F37)+IF(Résultats!O5=\"FE\",0,Résultats!O5)+IF(Résultats!N9=\"FE\",0,Résultats!N9)+IF(Résultats!O15=\"FE\",0,Résultats!O15)+IF(Résultats!N22=\"FE\",0,Résultats!N22)+IF(Résultats!N27=\"FE\",0,Résultats!N27)+IF(Résultats!O32=\"FE\",0,Résultats!O32)+IF(Résultats!N37=\"FE\",0,Résultats!N37)","v":45}]
[null,7,null,{"$f":"Equipes!C10","v":"CLARAFOND 2"},11,-24,5,{"$f":"IF(AND(Résultats!E4>8,Résultats!E4<17),1,0)+IF(AND(Résultats!F9>8,Résultats!F9<17),1,0)+IF(AND(Résultats!E14>8,Résultats!E14<17),1,0)+IF(AND(Résultats!F19>8,Résultats!F19<17),1,0)+IF(AND(Résultats!E24>8,Résultats!E24<17),1,0)+IF(AND(Résultats!E29>8,Résultats!E29<17),1,0)+IF(AND(Résultats!F34>8,Résultats!F34<17),1,0)+IF(AND(Résultats!O4>8,Résultats!O4<17),1,0)+IF(AND(Résultats!N9>8,Résultats!N9<17),1,0)+IF(AND(Résultats!O14>8,Résultats!O14<17),1,0)+IF(AND(Résultats!N19>8,Résultats!N19<17),1,0)+IF(AND(Résultats!O24>8,Résultats!O24<17),1,0)+IF(AND(Résultats!O29>8,Résultats!O29<17),1,0)+IF(AND(Résultats!N34>8,Résultats!N34<17),1,0)+IF(Résultats!F4=\"FE\",1,0)+IF(Résultats!E9=\"FE\",1,0)+IF(Résultats!F14=\"FE\",1,0)+IF(Résultats!E19=\"FE\",1,0)+IF(Résultats!F24=\"FE\",1,0)+IF(Résultats!F29=\"FE\",1,0)+IF(Résultats!E34=\"FE\",1,0)+IF(Résultats!N4=\"FE\",1,0)+IF(Résultats!O9=\"FE\",1,0)+IF(Résultats!N14=\"FE\",1,0)+IF(Résultats!O19=\"FE\",1,0)+IF(Résultats!N24=\"FE\",1,0)+IF(Résultats!N29=\"FE\",1,0)+IF(Résultats!O34=\"FE\",1,0)","v":1},{"$f":"IF(AND(Résultats!E4>11,Résultats!E4<17),1,0)+IF(AND(Résultats!F9>11,Résultats!F9<17),1,0)+IF(AND(Résultats!E14>11,Résultats!E14<17),1,0)+IF(AND(Résultats!F19>11,Résultats!F19<17),1,0)+IF(AND(Résultats!E24>11,Résultats!E24<17),1,0)+IF(AND(Résultats!E29>11,Résultats!E29<17),1,0)+IF(AND(Résultats!F34>11,Résultats!F34<17),1,0)+IF(AND(Résultats!O4>11,Résultats!O4<17),1,0)+IF(AND(Résultats!N9>11,Résultats!N9<17),1,0)+IF(AND(Résultats!O14>11,Résultats!O14<17),1,0)+IF(AND(Résultats!N19>11,Résultats!N19<17),1,0)+IF(AND(Résultats!O24>11,Résultats!O24<17),1,0)+IF(AND(Résultats!O29>11,Résultats!O29<17),1,0)+IF(AND(Résultats!N34>11,Résultats!N34<17),1,0)","v":0},{"$f":"IF(ISBLANK(Résultats!E4),\"0\",(IF(Résultats!E4<8,1,0)))+IF(ISBLANK(Résultats!F9),\"0\",(IF(Résultats!F9<8,1,0)))+IF(ISBLANK(Résultats!E14),\"0\",(IF(Résultats!E14<8,1,0)))+IF(ISBLANK(Résultats!F19),\"0\",(IF(Résultats!F19<8,1,0)))+IF(ISBLANK(Résultats!E24),\"0\",(IF(Résultats!E24<8,1,0)))+IF(ISBLANK(Résultats!E29),\"0\",(IF(Résultats!E29<8,1,0)))+IF(ISBLANK(Résultats!F34),\"0\",(IF(Résultats!F34<8,1,0)))+IF(ISBLANK(Résultats!O4),\"0\",(IF(Résultats!O4<8,1,0)))+IF(ISBLANK(Résultats!N9),\"0\",(IF(Résultats!N9<8,1,0)))+IF(ISBLANK(Résultats!O14),\"0\",(IF(Résultats!O14<8,1,0)))+IF(ISBLANK(Résultats!N19),\"0\",(IF(Résultats!N19<8,1,0)))+IF(ISBLANK(Résultats!O24),\"0\",(IF(Résultats!O24<8,1,0)))+IF(ISBLANK(Résultats!O29),\"0\",(IF(Résultats!O29<8,1,0)))+IF(ISBLANK(Résultats!N34),\"0\",(IF(Résultats!N34<8,1,0)))","v":4},{"$f":"IF(AND(Résultats!E4>4,Résultats!E4<8),1,0)+IF(AND(Résultats!F9>4,Résultats!F9<8),1,0)+IF(AND(Résultats!E14>4,Résultats!E14<8),1,0)+IF(AND(Résultats!F19>4,Résultats!F19<8),1,0)+IF(AND(Résultats!E24>4,Résultats!E24<8),1,0)+IF(AND(Résultats!E29>4,Résultats!E29<8),1,0)+IF(AND(Résultats!F34>4,Résultats!F34<8),1,0)+IF(AND(Résultats!O4>4,Résultats!O4<8),1,0)+IF(AND(Résultats!N9>4,Résultats!N9<8),1,0)+IF(AND(Résultats!O14>4,Résultats!O14<8),1,0)+IF(AND(Résultats!N19>4,Résultats!N19<8),1,0)+IF(AND(Résultats!O24>4,Résultats!O24<8),1,0)+IF(AND(Résultats!O29>4,Résultats!O29<8),1,0)+IF(AND(Résultats!N34>4,Résultats!N34<8),1,0)","v":2},{"$f":"IF(Résultats!E4=8,1,0)+IF(Résultats!F9=8,1,0)+IF(Résultats!E14=8,1,0)+IF(Résultats!F19=8,1,0)+IF(Résultats!E24=8,1,0)+IF(Résultats!E29=8,1,0)+IF(Résultats!F34=8,1,0)+IF(Résultats!O4=8,1,0)+IF(Résultats!N9=8,1,0)+IF(Résultats!O14=8,1,0)+IF(Résultats!N19=8,1,0)+IF(Résultats!O24=8,1,0)+IF(Résultats!O29=8,1,0)+IF(Résultats!N34=8,1,0)","v":0},null,{"$f":"IF(Résultats!E4=\"FE\",1,0)+IF(Résultats!F9=\"FE\",1,0)+IF(Résultats!E14=\"FE\",1,0)+IF(Résultats!F19=\"FE\",1,0)+IF(Résultats!E24=\"FE\",1,0)+IF(Résultats!E29=\"FE\",1,0)+IF(Résultats!F34=\"FE\",1,0)+IF(Résultats!O4=\"FE\",1,0)+IF(Résultats!N9=\"FE\",1,0)+IF(Résultats!O14=\"FE\",1,0)+IF(Résultats!N19=\"FE\",1,0)+IF(Résultats!O24=\"FE\",1,0)+IF(Résultats!O29=\"FE\",1,0)+IF(Résultats!N34=\"FE\",1,0)","v":0},{"$f":"IF(Résultats!E4=\"FE\",0,Résultats!E4)+IF(Résultats!F9=\"FE\",0,Résultats!F9)+IF(Résultats!E14=\"FE\",0,Résultats!E14)+IF(Résultats!F19=\"FE\",0,Résultats!F19)+IF(Résultats!E24=\"FE\",0,Résultats!E24)+IF(Résultats!E29=\"FE\",0,Résultats!E29)+IF(Résultats!F34=\"FE\",0,Résultats!F34)+IF(Résultats!O4=\"FE\",0,Résultats!O4)+IF(Résultats!N9=\"FE\",0,Résultats!N9)+IF(Résultats!O14=\"FE\",0,Résultats!O14)+IF(Résultats!N19=\"FE\",0,Résultats!N19)+IF(Résultats!O24=\"FE\",0,Résultats!O24)+IF(Résultats!O29=\"FE\",0,Résultats!O29)+IF(Résultats!N34=\"FE\",0,Résultats!N34)","v":28},{"$f":"IF(Résultats!F4=\"FE\",0,Résultats!F4)+IF(Résultats!E9=\"FE\",0,Résultats!E9)+IF(Résultats!F14=\"FE\",0,Résultats!F14)+IF(Résultats!E19=\"FE\",0,Résultats!E19)+IF(Résultats!F24=\"FE\",0,Résultats!F24)+IF(Résultats!F29=\"FE\",0,Résultats!F29)+IF(Résultats!E34=\"FE\",0,Résultats!E34)+IF(Résultats!N4=\"FE\",0,Résultats!N4)+IF(Résultats!O9=\"FE\",0,Résultats!O9)+IF(Résultats!N14=\"FE\",0,Résultats!N14)+IF(Résultats!O19=\"FE\",0,Résultats!O9)+IF(Résultats!N24=\"FE\",0,Résultats!N24)+IF(Résultats!N29=\"FE\",0,Résultats!N29)+IF(Résultats!O34=\"FE\",0,Résultats!O34)","v":52}]
[null,8,null,{"$f":"Equipes!C11","v":"CLARAFOND 3"},10,-30,5,{"$f":"IF(AND(Résultats!F4>8,Résultats!F4<17),1,0)+IF(AND(Résultats!E10>8,Résultats!E10<17),1,0)+IF(AND(Résultats!E15>8,Résultats!E15<17),1,0)+IF(AND(Résultats!F20>8,Résultats!F20<17),1,0)+IF(AND(Résultats!E25>8,Résultats!E25<17),1,0)+IF(AND(Résultats!F30>8,Résultats!F30<17),1,0)+IF(AND(Résultats!F35>8,Résultats!F35<17),1,0)+IF(AND(Résultats!N4>8,Résultats!N4<17),1,0)+IF(AND(Résultats!O10>8,Résultats!O10<17),1,0)+IF(AND(Résultats!O15>8,Résultats!O15<17),1,0)+IF(AND(Résultats!N20>8,Résultats!N20<17),1,0)+IF(AND(Résultats!O25>8,Résultats!O25<17),1,0)+IF(AND(Résultats!N30>8,Résultats!N30<17),1,0)+IF(AND(Résultats!N35>8,Résultats!N35<17),1,0)+IF(Résultats!E4=\"FE\",1,0)+IF(Résultats!F10=\"FE\",1,0)+IF(Résultats!F15=\"FE\",1,0)+IF(Résultats!E20=\"FE\",1,0)+IF(Résultats!F25=\"FE\",1,0)+IF(Résultats!E30=\"FE\",1,0)+IF(Résultats!E35=\"FE\",1,0)+IF(Résultats!O4=\"FE\",1,0)+IF(Résultats!N10=\"FE\",1,0)+IF(Résultats!N15=\"FE\",1,0)+IF(Résultats!O20=\"FE\",1,0)+IF(Résultats!N25=\"FE\",1,0)+IF(Résultats!O30=\"FE\",1,0)+IF(Résultats!O35=\"FE\",1,0)","v":1},{"$f":"IF(AND(Résultats!F4>11,Résultats!F4<17),1,0)+IF(AND(Résultats!E10>11,Résultats!E10<17),1,0)+IF(AND(Résultats!E15>11,Résultats!E15<17),1,0)+IF(AND(Résultats!F20>11,Résultats!F20<17),1,0)+IF(AND(Résultats!E25>11,Résultats!E25<17),1,0)+IF(AND(Résultats!F30>11,Résultats!F30<17),1,0)+IF(AND(Résultats!F35>11,Résultats!F35<17),1,0)+IF(AND(Résultats!N4>11,Résultats!N4<17),1,0)+IF(AND(Résultats!O10>11,Résultats!O10<17),1,0)+IF(AND(Résultats!O15>11,Résultats!O15<17),1,0)+IF(AND(Résultats!N20>11,Résultats!N20<17),1,0)+IF(AND(Résultats!O25>11,Résultats!O25<17),1,0)+IF(AND(Résultats!N30>11,Résultats!N30<17),1,0)+IF(AND(Résultats!N35>11,Résultats!N35<17),1,0)","v":0},{"$f":"IF(ISBLANK(Résultats!F4),\"0\",(IF(Résultats!F4<8,1,0)))+IF(ISBLANK(Résultats!E10),\"0\",(IF(Résultats!E10<8,1,0)))+IF(ISBLANK(Résultats!E15),\"0\",(IF(Résultats!E15<8,1,0)))+IF(ISBLANK(Résultats!F20),\"0\",(IF(Résultats!F20<8,1,0)))+IF(ISBLANK(Résultats!E25),\"0\",(IF(Résultats!E25<8,1,0)))+IF(ISBLANK(Résultats!F30),\"0\",(IF(Résultats!F30<8,1,0)))+IF(ISBLANK(Résultats!F35),\"0\",(IF(Résultats!F35<8,1,0)))+IF(ISBLANK(Résultats!N4),\"0\",(IF(Résultats!N4<8,1,0)))+IF(ISBLANK(Résultats!O10),\"0\",(IF(Résultats!O10<8,1,0)))+IF(ISBLANK(Résultats!O15),\"0\",(IF(Résultats!O15<8,1,0)))+IF(ISBLANK(Résultats!N20),\"0\",(IF(Résultats!N20<8,1,0)))+IF(ISBLANK(Résultats!O25),\"0\",(IF(Résultats!O25<8,1,0)))+IF(ISBLANK(Résultats!N30),\"0\",(IF(Résultats!N30<8,1,0)))+IF(ISBLANK(Résultats!N35),\"0\",(IF(Résultats!N35<8,1,0)))","v":4},{"$f":"IF(AND(Résultats!F4>4,Résultats!F4<8),1,0)+IF(AND(Résultats!E10>4,Résultats!E10<8),1,0)+IF(AND(Résultats!E15>4,Résultats!E15<8),1,0)+IF(AND(Résultats!F20>4,Résultats!F20<8),1,0)+IF(AND(Résultats!E25>4,Résultats!E25<8),1,0)+IF(AND(Résultats!F30>4,Résultats!F30<8),1,0)+IF(AND(Résultats!F35>4,Résultats!F35<8),1,0)+IF(AND(Résultats!N4>4,Résultats!N4<8),1,0)+IF(AND(Résultats!O10>4,Résultats!O10<8),1,0)+IF(AND(Résultats!O15>4,Résultats!O15<8),1,0)+IF(AND(Résultats!N20>4,Résultats!N20<8),1,0)+IF(AND(Résultats!O25>4,Résultats!O25<8),1,0)+IF(AND(Résultats!N30>4,Résultats!N30<8),1,0)+IF(AND(Résultats!N35>4,Résultats!N35<8),1,0)","v":1},{"$f":"IF(Résultats!F4=8,1,0)+IF(Résultats!E10=8,1,0)+IF(Résultats!E15=8,1,0)+IF(Résultats!F20=8,1,0)+IF(Résultats!E25=8,1,0)+IF(Résultats!F30=8,1,0)+IF(Résultats!F35=8,1,0)+IF(Résultats!N4=8,1,0)+IF(Résultats!O10=8,1,0)+IF(Résultats!O15=8,1,0)+IF(Résultats!N20=8,1,0)+IF(Résultats!O25=8,1,0)+IF(Résultats!N30=8,1,0)+IF(Résultats!N35=8,1,0)","v":0},null,{"$f":"IF(Résultats!F4=\"FE\",1,0)+IF(Résultats!E10=\"FE\",1,0)+IF(Résultats!E15=\"FE\",1,0)+IF(Résultats!F20=\"FE\",1,0)+IF(Résultats!E25=\"FE\",1,0)+IF(Résultats!F30=\"FE\",1,0)+IF(Résultats!F35=\"FE\",1,0)+IF(Résultats!N4=\"FE\",1,0)+IF(Résultats!O10=\"FE\",1,0)+IF(Résultats!O15=\"FE\",1,0)+IF(Résultats!N20=\"FE\",1,0)+IF(Résultats!O25=\"FE\",1,0)+IF(Résultats!N30=\"FE\",1,0)+IF(Résultats!N35=\"FE\",1,0)","v":0},{"$f":"IF(Résultats!F4=\"FE\",0,Résultats!F4)+IF(Résultats!E10=\"FE\",0,Résultats!E10)+IF(Résultats!E15=\"FE\",0,Résultats!E15)+IF(Résultats!F20=\"FE\",0,Résultats!F20)+IF(Résultats!E25=\"FE\",0,Résultats!E25)+IF(Résultats!F30=\"FE\",0,Résultats!F30)+IF(Résultats!F35=\"FE\",0,Résultats!F35)+IF(Résultats!N4=\"FE\",0,Résultats!N4)+IF(Résultats!O10=\"FE\",0,Résultats!O10)+IF(Résultats!O15=\"FE\",0,Résultats!O15)+IF(Résultats!N20=\"FE\",0,Résultats!N20)+IF(Résultats!O25=\"FE\",0,Résultats!O25)+IF(Résultats!N30=\"FE\",0,Résultats!N30)+IF(Résultats!N35=\"FE\",0,Résultats!N35)","v":24},{"$f":"IF(Résultats!E4=\"FE\",0,Résultats!E4)+IF(Résultats!F10=\"FE\",0,Résultats!F10)+IF(Résultats!F15=\"FE\",0,Résultats!F15)+IF(Résultats!E20=\"FE\",0,Résultats!E20)+IF(Résultats!F25=\"FE\",0,Résultats!F25)+IF(Résultats!E30=\"FE\",0,Résultats!E30)+IF(Résultats!E35=\"FE\",0,Résultats!E35)+IF(Résultats!O4=\"FE\",0,Résultats!O4)+IF(Résultats!N10=\"FE\",0,Résultats!N10)+IF(Résultats!N15=\"FE\",0,Résultats!N15)+IF(Résultats!O20=\"FE\",0,Résultats!O20)+IF(Résultats!N25=\"FE\",0,Résultats!N25)+IF(Résultats!O30=\"FE\",0,Résultats!O30)+IF(Résultats!O35=\"FE\",0,Résultats!O35)","v":54}]
[]
[]
[null,null,null,null,null," : PROMOTION DR1",null,null,null,null,null,null," "]

{"sheet":"Résultats","index":2,"n_rows":37,"n_cols":16,"rows_kept":37,"cut":false,"hidden":false,"merged":[[35,15,35,17],[30,15,30,17],[25,15,25,17],[20,15,20,17],[15,15,15,17],[34,15,34,17],[36,10,36,12],[36,15,36,17],[31,15,31,17],[32,10,32,12],[32,15,32,17],[33,10,33,12],[33,15,33,17],[18,15,18,17],[19,15,19,17],[27,15,27,17],[28,10,28,12],[28,15,28,17],[29,10,29,12],[29,15,29,17],[23,15,23,17],[24,15,24,17],[26,15,26,17],[26,10,26,12],[30,6,30,8],[34,1,34,3],[34,6,34,8],[14,1,14,3],[16,1,16,3],[14,6,14,8],[16,6,16,8],[17,6,17,8],[24,6,24,8],[26,6,26,8],[32,1,32,3],[23,6,23,8],[18,6,18,8],[19,6,19,8],[21,6,21,8],[22,6,22,8],[15,1,15,3],[20,1,20,3],[25,1,25,3],[30,1,30,3],[27,1,27,3],[10,1,10,3],[17,1,17,3],[18,1,18,3],[19,1,19,3],[21,1,21,3],[26,1,26,3],[24,1,24,3],[15,6,15,8],[20,6,20,8],[25,6,25,8],[36,1,36,3],[36,6,36,8],[27,10,27,12],[31,10,31,12],[34,10,34,12],[14,10,14,12],[22,10,22,12],[8,10,8,12],[32,6,32,8],[33,1,33,3],[33,6,33,8],[35,1,35,3],[35,6,35,8],[22,1,22,3],[23,1,23,3],[27,6,27,8],[28,1,28,3],[28,6,28,8],[29,1,29,3],[29,6,29,8],[35,10,35,12],[30,10,30,12],[31,1,31,3],[31,6,31,8],[6,15,6,17],[6,10,6,12],[11,10,11,12],[15,10,15,12],[20,10,20,12],[21,15,21,17],[7,10,7,12],[9,10,9,12],[19,10,19,12],[12,10,12,12],[7,15,7,17],[8,15,8,17],[14,15,14,17],[16,15,16,17],[17,15,17,17],[24,10,24,12],[18,10,18,12],[21,10,21,12],[17,10,17,12],[25,10,25,12],[23,10,23,12],[1,10,1,17],[3,10,3,12],[5,10,5,12],[16,10,16,12],[2,10,2,12],[2,15,2,17],[3,15,3,17],[4,15,4,17],[5,15,5,17],[4,10,4,12],[9,15,9,17],[10,15,10,17],[12,15,12,17],[11,15,11,17],[22,15,22,17],[10,10,10,12],[13,15,13,17],[13,10,13,12],[1,1,1,8],[2,6,2,8],[3,6,3,8],[4,6,4,8],[5,6,5,8],[13,6,13,8],[2,1,2,3],[3,1,3,3],[4,1,4,3],[5,1,5,3],[7,6,7,8],[8,6,8,8],[9,6,9,8],[10,6,10,8],[12,6,12,8],[12,1,12,3],[7,1,7,3],[13,1,13,3],[11,6,11,8],[6,6,6,8],[6,1,6,3],[11,1,11,3],[8,1,8,3],[9,1,9,3]]}
[]
[null,"MATCHS ALLER",null,null,null,null,null,null,null,null,"MATCHS RETOUR"]
[null,"1ere Journée",null,null,null,null,"2019-11-17",null,null,null,"8eme Journée",null,null,null,null,"2020-01-12"]
[null,{"$f":"Equipes!C10","v":"CLARAFOND 2"},null,null,6,10,{"$f":"Equipes!C11","v":"CLARAFOND 3"},null,null,null,{"$f":"G4","v":"CLARAFOND 3"},null,null,null,null,{"$f":"B4","v":"CLARAFOND 2"}]
[null,{"$f":"Equipes!C13","v":"LYON 1"},null,null,10,6,{"$f":"Equipes!C14","v":"LYON 4"},null,null,null,{"$f":"G5","v":"LYON 4"},null,null,null,null,{"$f":"B5","v":"LYON 1"}]
[null,{"$f":"Equipes!C16","v":"VILLEFRANCHE/SAONE"},null,null,11,5,{"$f":"Equipes!C15","v":"BOURG LES VALENCE 3"},null,null,null,{"$f":"G6","v":"BOURG LES VALENCE 3"},null,null,null,null,{"$f":"B6","v":"VILLEFRANCHE/SAONE"}]
[null,{"$f":"Equipes!C12","v":"SEVRIER 2"},null,null,6,10,{"$f":"Equipes!C17","v":"GAILLARD"},null,null,null,{"$f":"G7","v":"GAILLARD"},null,null,null,null,{"$f":"B7","v":"SEVRIER 2"}]
[null,"2emeJournée",null,null,null,null,"2019-11-17",null,null,null,"9eme journée",null,null,null,null,"2020-01-12"]
[null,{"$f":"G5","v":"LYON 4"},null,null,5,11,{"$f":"B4","v":"CLARAFOND 2"},null,null,null,{"$f":"G9","v":"CLARAFOND 2"},null,null,null,null,{"$f":"B9","v":"LYON 4"}]
[null,{"$f":"G4","v":"CLARAFOND 3"},null,null,6,10,{"$f":"B5","v":"LYON 1"},null,null,null,{"$f":"G10","v":"LYON 1"},null,null,null,null,{"$f":"B10","v":"CLARAFOND 3"}]
[null,{"$f":"B6","v":"VILLEFRANCHE/SAONE"},null,null,11,5,{"$f":"B7","v":"SEVRIER 2"},null,null,null,{"$f":"G11","v":"SEVRIER 2"},null,null,null,null,{"$f":"B11","v":"VILLEFRANCHE/SAONE"}]
[null,{"$f":"G6","v":"BOURG LES VALENCE 3"},null,null,9,7,{"$f":"G7","v":"GAILLARD"},null,null,null,{"$f":"G12","v":"GAILLARD"},null,null,null,null,{"$f":"B12","v":"BOURG LES VALENCE 3"}]
[null,"3eme Journée",null,null,null,null,"2019-11-17",null,null,null,"10eme Journée",null,null,null,null,"2020-03-29"]
[null,{"$f":"B4","v":"CLARAFOND 2"},null,null,7,9,{"$f":"B5","v":"LYON 1"},null,null,null,{"$f":"G14","v":"LYON 1"},null,null,null,null,{"$f":"B14","v":"CLARAFOND 2"}]
[null,{"$f":"G4","v":"CLARAFOND 3"},null,null,3,13,{"$f":"G5","v":"LYON 4"},null,null,null,{"$f":"G15","v":"LYON 4"},null,null,null,null,{"$f":"B15","v":"CLARAFOND 3"}]
[null,{"$f":"G7","v":"GAILLARD"},null,null,4,12,{"$f":"B6","v":"VILLEFRANCHE/SAONE"},null,null,null,{"$f":"G16","v":"VILLEFRANCHE/SAONE"},null,null,null,null,{"$f":"B16","v":"GAILLARD"}]
[null,{"$f":"B7","v":"SEVRIER 2"},null,null,6,10,{"$f":"G6","v":"BOURG LES VALENCE 3"},null,null,null,{"$f":"G17","v":"BOURG LES VALENCE 3"},null,null,null,null,{"$f":"B17","v":"SEVRIER 2"}]
[null,"4eme Journée",null,null,null,null,"2019-11-17",null,null,null,"11eme journée",null,null,null,null,"2020-03-29"]
[null,{"$f":"G6","v":"BOURG LES VALENCE 3"},null,null,13,3,{"$f":"B4","v":"CLARAFOND 2"},null,null,null,{"$f":"G19","v":"CLARAFOND 2"},null,null,null,null,{"$f":"B19","v":"BOURG LES VALENCE 3"}]
[null,{"$f":"B6","v":"VILLEFRANCHE/SAONE"},null,null,12,2,{"$f":"G4","v":"CLARAFOND 3"},null,null,null,{"$f":"G20","v":"CLARAFOND 3"},null,null,null,null,{"$f":"B20","v":"VILLEFRANCHE/SAONE"}]
[null,{"$f":"B5","v":"LYON 1"},null,null,9,7,{"$f":"G7","v":"GAILLARD"},null,null,null,{"$f":"G21","v":"GAILLARD"},null,null,null,null,{"$f":"B21","v":"LYON 1"}]
[null,{"$f":"G5","v":"LYON 4"},null,null,5,11,{"$f":"B7","v":"SEVRIER 2"},null,null,null,{"$f":"G22","v":"SEVRIER 2"},null,null,null,null,{"$f":"B22","v":"LYON 4"}]
[null,"5eme Journée",null,null,null,null,"2019-11-17",null,null,null,"12eme Journée",null,null,null,null,"2020-03-29"]
[null,{"$f":"B4","v":"CLARAFOND 2"},null,null,1,15,{"$f":"B7","v":"SEVRIER 2"},null,null,null,{"$f":"G24","v":"SEVRIER 2"},null,null,null,null,{"$f":"B24","v":"CLARAFOND 2"}]
[null,{"$f":"G4","v":"CLARAFOND 3"},null,null,3,13,{"$f":"G7","v":"GAILLARD"},null,null,null,{"$f":"G25","v":"GAILLARD"},null,null,null,null,{"$f":"B25","v":"CLARAFOND 3"}]
[null,{"$f":"B6","v":"VILLEFRANCHE/SAONE"},null,null,13,3,{"$f":"B5","v":"LYON 1"},null,null,null,{"$f":"G26","v":"LYON 1"},null,null,null,null,{"$f":"B26","v":"VILLEFRANCHE/SAONE"}]
[null,{"$f":"G5","v":"LYON 4"},null,null,6,10,{"$f":"G6","v":"BOURG LES VALENCE 3"},null,null,null,{"$f":"G27","v":"BOURG LES VALENCE 3"},null,null,null,null,{"$f":"B27","v":"LYON 4"}]
[null,"6eme Journée",null,null,null,null,"2020-01-12",null,null,null,"13eme Journée",null,null,null,null,"2020-03-29"]
[null,{"$f":"B4","v":"CLARAFOND 2"},null,null,null,null,{"$f":"B6","v":"VILLEFRANCHE/SAONE"},null,null,null,{"$f":"G29","v":"VILLEFRANCHE/SAONE"},null,null,null,null,{"$f":"B29","v":"CLARAFOND 2"}]
[null,{"$f":"B7","v":"SEVRIER 2"},null,null,null,null,{"$f":"G4","v":"CLARAFOND 3"},null,null,null,{"$f":"G30","v":"CLARAFOND 3"},null,null,null,null,{"$f":"B30","v":"SEVRIER 2"}]
[null,{"$f":"B5","v":"LYON 1"},null,null,null,null,{"$f":"G6","v":"BOURG LES VALENCE 3"},null,null,null,{"$f":"G31","v":"BOURG LES VALENCE 3"},null,null,null,null,{"$f":"B31","v":"LYON 1"}]
[null,{"$f":"G7","v":"GAILLARD"},null,null,null,null,{"$f":"G5","v":"LYON 4"},null,null,null,{"$f":"G32","v":"LYON 4"},null,null,null,null,{"$f":"B32","v":"GAILLARD"}]
[null,"7eme Journée",null,null,null,null,"2020-01-12",null,null,null,"14eme Journée",null,null,null,null,"2020-03-29"]
[null,{"$f":"G7","v":"GAILLARD"},null,null,null,null,{"$f":"B4","v":"CLARAFOND 2"},null,null,null,{"$f":"G34","v":"CLARAFOND 2"},null,null,null,null,{"$f":"B34","v":"GAILLARD"}]
[null,{"$f":"G6","v":"BOURG LES VALENCE 3"},null,null,null,null,{"$f":"G4","v":"CLARAFOND 3"},null,null,null,{"$f":"G35","v":"CLARAFOND 3"},null,null,null,null,{"$f":"B35","v":"BOURG LES VALENCE 3"}]
[null,{"$f":"B5","v":"LYON 1"},null,null,null,null,{"$f":"B7","v":"SEVRIER 2"},null,null,null,{"$f":"G36","v":"SEVRIER 2"},null,null,null,null,{"$f":"B36","v":"LYON 1"}]
[null,{"$f":"G5","v":"LYON 4"},null,null,null,null,{"$f":"B6","v":"VILLEFRANCHE/SAONE"},null,null,null,{"$f":"G37","v":"VILLEFRANCHE/SAONE"},null,null,null,null,{"$f":"B37","v":"LYON 4"}]